bitfinex-derivatives/quotes_ETHF0:USTF0_20250704
["timestamp","ask_amount","ask_price","bid_price","bid_amount"]
[1751646978455,0.7205,2485.5,2485.0,4.0251]
[1751646978661,0.80445,2485.4,2485.3,0.80444]
[1751646978850,0.80435,2485.7,2485.6,0.80434]
[1751646979054,0.80436,2485.7,2485.6,0.80435]
[1751646979256,0.80436,2485.7,2485.5,3.2078]
[1751646979257,0.80433,2485.8,2485.7,0.80432]
[1751646979453,0.80429,2485.9,2485.8,0.80428]
[1751646979655,1.20538781,2485.9,2485.6,2.93365]
[1751646979860,0.8043,2485.8,2485.7,1.4327]
[1751646980061,0.80434,2485.7,2485.6,1.50097]
[1751646980261,0.7205,2486.0,2485.6,2.1293]
[1751646980454,0.80427,2485.9,2485.6,2.1293]
[1751646980660,44.0078,2486.2,2485.8,3.2078]
[1751646980960,0.80424,2486.0,2485.9,2.23697]
[1751646981264,0.80424,2486.0,2485.9,1.4327]
[1751646981760,40.8,2486.5,2485.9,1.4327]
[1751646981960,0.80416,2486.3,2486.1,4.012]
[1751646982263,0.80414,2486.3,2486.2,1.4327]
[1751646982461,0.80414,2486.4,2486.2,2.23686]
[1751646982664,0.80414,2486.4,2486.2,1.4327]
[1751646982864,0.662,2486.7,2486.2,2.23686]
[1751646983064,0.80414,2486.3,2486.2,1.4327]
[1751646983263,0.80417,2486.2,2486.1,3.2078]
[1751646983564,40.8,2486.6,2486.2,0.80417]
[1751646983759,0.662,2486.7,2486.4,0.8041]
[1751646983966,0.80406,2486.6,2486.5,3.2078]
[1751646984165,0.80406,2486.6,2486.5,4.5479]
[1751646984560,0.80406,2486.6,2486.5,3.2078]
[1751646984756,0.662,2486.7,2486.2,3.2078]
[1751646984757,2.01023,2486.5,2486.2,3.2078]
[1751646985067,0.80414,2486.3,2486.2,4.01196]
[1751646985367,0.80414,2486.3,2486.2,3.2078]
[1751646985567,0.80413,2486.4,2486.3,0.80414]
[1751646985860,0.80414,2486.3,2486.2,3.2078]
[1751646986059,0.8041,2486.5,2486.2,3.2078]
[1751646986264,0.662,2486.7,2486.3,2.0195]
[1751646986465,1.46603,2486.7,2486.6,0.80404]
[1751646986764,0.80404,2486.6,2486.5,4.01185]
[1751646986963,0.662,2486.7,2486.6,0.80404]
[1751646986964,1.46604,2486.7,2486.6,0.80404]
[1751646987165,0.80404,2486.6,2486.5,4.01184]
[1751646987365,0.80404,2486.6,2486.5,3.2078]
[1751646989562,0.80417,2486.2,2486.1,3.2078]
[1751646990270,0.80417,2486.3,2486.2,0.80416]
[1751646990462,2.01019,2486.6,2486.1,3.2078]
[1751646990663,0.80417,2486.2,2486.1,4.01199]
[1751646991567,0.80417,2486.2,2486.1,3.2078]
[1751646992464,1.48627,2486.2,2486.1,3.2078]
[1751646992669,2.84197,2486.2,2486.1,3.2078]
[1751646992969,0.80439,2485.6,2485.5,3.2078]
[1751646993170,2.0107,2485.9,2485.3,1.4359]
[1751646993371,0.80432,2485.8,2485.7,0.80432]
[1751646993871,4.04825,2486.2,2485.5,0.80438]
[1751646993872,0.80438,2485.6,2485.5,0.80438]
[1751646994171,0.80443,2485.4,2485.3,0.80444]
[1751646994470,0.80461,2484.9,2484.7,3.2078]
[1751646994659,0.80461,2484.9,2484.8,0.80461]
[1751646994860,1.3754,2485.3,2484.7,3.2078]
[1751646995065,0.80463,2484.8,2484.7,3.2078]
[1751646995767,0.80469,2484.6,2484.5,0.80471]
[1751646995962,4.5327,2485.1,2484.4,3.2078]
[1751646996270,0.80465,2484.8,2484.7,0.80466]
[1751646996467,0.80461,2484.9,2484.8,0.80463]
[1751646996668,3.2078,2485.1,2485.0,0.80456]
[1751646996873,3.2078,2485.5,2485.4,0.80443]
[1751646997169,4.01211,2485.8,2485.7,0.80434]
[1751646997465,1.50889,2485.9,2485.8,0.8043]
[1751646997672,3.2078,2486.1,2485.6,3.2078]
[1751646997970,0.80429,2485.9,2485.8,0.8043]
[1751646998165,3.2078,2486.1,2485.4,1.3426]
[1751646998367,0.80436,2485.7,2485.6,0.80437]
[1751646998670,4.6477,2486.1,2485.5,1.3327]
[1751646998870,0.80432,2485.8,2485.7,0.80433]
[1751646999068,0.80434,2485.7,2485.6,0.80435]
[1751646999574,4.6477,2486.1,2485.5,1.3327]
[1751646999766,4.01202,2486.1,2486.0,0.80424]
[1751647000169,3.2078,2486.1,2486.0,0.80424]
[1751647000676,0.80425,2486.0,2485.9,0.80425]
[1751647001368,3.2078,2486.1,2485.8,1.3327]
[1751647001369,0.80427,2485.9,2485.8,1.3327]
[1751647001570,0.80434,2485.7,2485.6,4.01215]
[1751647001774,0.80432,2485.8,2485.7,0.80432]
[1751647001974,0.80432,2485.8,2485.6,3.2078]
[1751647001975,0.80434,2485.7,2485.6,4.01216]
[1751647002172,0.80434,2485.7,2485.6,3.2078]
[1751647003170,0.80439,2485.6,2485.4,1.9853]
[1751647003375,2.01077,2485.9,2485.4,0.6638]
[1751647003376,2.01077,2485.8,2485.4,0.6638]
[1751647003574,0.80442,2485.5,2485.3,3.2078]
[1751647003765,2.01085,2485.7,2485.6,0.80437]
[1751647003766,1.47525,2485.7,2485.6,0.80437]
[1751647004172,0.80438,2485.6,2485.5,0.80438]
[1751647004668,0.80436,2485.7,2485.6,0.80436]
[1751647005473,0.80432,2485.8,2485.7,0.80431]
[1751647005672,0.80432,2485.8,2485.7,1.3252]
[1751647005864,0.80432,2485.8,2485.6,4.01216]
[1751647005865,0.8043,2485.9,2485.8,0.80429]
[1751647006068,3.2078,2486.1,2485.6,6.5439]
[1751647006271,3.2078,2486.1,2485.9,0.80425]
[1751647006472,0.80426,2486.0,2485.9,0.80425]
[1751647007672,4.01203,2486.1,2486.0,0.80424]
[1751647007970,3.2078,2486.1,2485.8,1.4263]
[1751647008174,3.2078,2486.1,2486.0,0.80424]
[1751647008679,4.01201,2486.1,2486.0,0.80424]
[1751647009284,3.2078,2486.1,2486.0,0.80424]
[1751647010078,4.01201,2486.1,2486.0,0.80424]
[1751647010592,3.2078,2486.1,2486.0,0.80424]
[1751647010776,4.01201,2486.1,2486.0,0.80424]
[1751647012078,3.2078,2486.1,2486.0,0.80424]
[1751647012581,0.80414,2486.4,2486.3,0.80414]
[1751647012779,0.80419,2486.3,2486.2,0.80415]
[1751647013480,0.80421,2486.2,2486.0,2.0556]
[1751647013683,0.80421,2486.2,2486.1,0.80421]
[1751647015181,0.80417,2486.3,2486.2,0.80414]
[1751647015877,5.35302,2486.5,2486.4,0.80411]
[1751647016181,0.80417,2486.3,2486.2,0.80414]
[1751647016481,0.80417,2486.3,2486.2,2.15884]
[1751647017285,0.80417,2486.3,2486.2,0.80414]
[1751647017584,0.80414,2486.4,2486.3,0.80411]
[1751647018383,0.80418,2486.3,2486.2,0.80415]
[1751647018682,0.66,2486.5,2485.7,3.2078]
[1751647018984,1.46408,2486.5,2486.4,0.80411]
[1751647019191,2.64176854,2486.5,2486.4,0.80411]
[1751647019690,1.83768854,2486.5,2486.4,0.80411]
[1751647019884,1.98176854,2486.5,2486.4,0.80411]
[1751647020086,0.80408,2486.5,2486.4,0.80411]
[1751647020282,3.2078,2486.6,2486.5,0.80408]
[1751647020481,0.80405,2486.6,2486.5,0.80408]
[1751647020882,0.80407,2486.6,2486.5,0.80403]
[1751647021087,2.69776,2486.8,2486.3,4.6454]
[1751647021386,0.80411,2486.5,2486.4,0.80409]
[1751647022182,2.01016,2486.6,2486.0,3.2078]
[1751647022488,0.80414,2486.4,2486.3,4.01192]
[1751647022785,0.8041,2486.5,2486.4,0.80408]
[1751647023487,1.49181,2486.8,2486.7,0.80401]
[1751647024093,0.80408,2486.6,2486.5,0.80406]
[1751647024385,0.80403,2486.7,2486.6,0.80402]
[1751647024687,0.80404,2486.7,2486.6,0.80403]
[1751647024983,0.80406,2486.6,2486.5,0.80405]
[1751647025182,0.8041,2486.5,2486.4,0.8041]
[1751647025383,0.80403,2486.7,2486.6,0.80402]
[1751647025590,0.80407,2486.6,2486.5,0.80405]
[1751647025791,0.80411,2486.4,2486.3,3.2078]
[1751647026186,0.80409,2486.5,2486.4,0.80407]
[1751647026981,0.80411,2486.4,2486.3,4.01194]
[1751647027182,0.8041,2486.5,2486.4,0.80408]
[1751647027588,0.80413,2486.4,2486.3,0.80412]
[1751647027785,0.80414,2486.3,2486.2,0.80418]
[1751647027986,0.80416,2486.3,2486.2,0.80413]
[1751647028182,0.80413,2486.4,2486.3,0.80412]
[1751647028682,3.2078,2486.7,2486.4,0.80409]
[1751647028984,3.2078,2486.7,2486.6,0.80405]
[1751647029185,4.01181,2486.7,2486.6,0.80405]
[1751647029485,3.2078,2486.7,2486.6,0.80405]
[1751647030085,0.80395,2487.0,2486.9,0.80392]
[1751647030287,0.80392,2487.0,2486.9,0.80392]
[1751647030582,3.2078,2487.5,2487.4,0.80379]
[1751647030790,5.18802335,2487.5,2487.4,0.80379]
[1751647030992,4.01158,2487.5,2487.4,0.80379]
[1751647031387,1.52414,2487.6,2487.5,0.80375]
[1751647031684,0.80381,2487.4,2487.3,0.8038]
[1751647031885,0.80381,2487.4,2487.3,0.80379]
[1751647032089,0.80377,2487.5,2487.4,0.80376]
[1751647032296,1.52414,2487.6,2487.5,0.80375]
[1751647032487,0.7204,2487.6,2487.5,0.80375]
[1751647032683,2.00939,2487.5,2486.4,3.2078]
[1751647032888,0.80385,2487.3,2487.0,3.2078]
[1751647033098,3.2078,2487.5,2487.2,0.80385]
[1751647033395,0.80384,2487.3,2487.2,0.80385]
[1751647033589,0.80385,2487.2,2487.1,1.3615]
[1751647033892,0.80385,2487.2,2487.1,2.16538]
[1751647034092,0.80385,2487.2,2487.1,1.3615]
[1751647034284,2.00957,2487.3,2486.9,0.7068]
[1751647034486,0.80398,2486.8,2486.7,3.2078]
[1751647034691,2.00989,2486.9,2486.4,3.2078]
[1751647034883,0.80407,2486.6,2486.5,0.80407]
[1751647035089,0.80408,2486.5,2486.4,4.5805]
[1751647035390,0.80408,2486.5,2486.4,5.38461]
[1751647035788,0.80408,2486.5,2486.4,4.5805]
[1751647036189,0.80408,2486.5,2486.4,3.2078]
[1751647037296,5.21792,2486.6,2486.0,0.80424]
[1751647037490,3.2078,2486.3,2486.0,0.80424]
[1751647037686,0.80417,2486.2,2486.0,0.80424]
[1751647037896,4.01197,2486.3,2486.1,0.80421]
[1751647038097,41.4667,2486.5,2485.9,1.3416]
[1751647038394,0.80402,2486.7,2486.5,0.80408]
[1751647038591,0.80402,2486.7,2486.0,13.63261]
[1751647038592,0.6667,2487.0,2486.4,2.01028]
[1751647038786,0.6667,2487.0,2486.9,0.80395]
[1751647039091,0.6923,2487.4,2487.2,0.80384]
[1751647039296,2.16281,2487.4,2486.8,13.63196]
[1751647039490,2.16281,2487.4,2487.2,0.80383]
[1751647039795,1.359,2487.4,2487.3,0.80382]
[1751647039996,2.16279,2487.4,2487.2,0.80384]
[1751647040294,1.359,2487.4,2487.3,0.80382]
[1751647040685,0.80384,2487.3,2487.1,1.3997]
[1751647040894,0.80384,2487.3,2487.2,0.80385]
[1751647041495,0.80384,2487.3,2487.2,0.80384]
[1751647041496,0.80382,2487.3,2487.2,0.80384]
[1751647041694,1.359,2487.4,2487.3,0.80382]
[1751647041994,0.80386,2487.2,2487.0,0.80389]
[1751647042293,0.80386,2487.2,2487.1,0.80388]
[1751647042593,0.80383,2487.3,2487.2,0.80383]
[1751647042890,2.1628,2487.4,2487.3,0.80382]
[1751647043098,0.80386,2487.2,2487.1,0.80386]
[1751647043298,0.80384,2487.3,2487.2,0.80384]
[1751647043498,2.16282,2487.4,2487.0,1.3997]
[1751647043696,0.80382,2487.3,2487.2,0.80384]
[1751647044296,1.359,2487.4,2487.3,0.80382]
[1751647044586,0.80372,2487.7,2487.6,0.80371]
[1751647044792,0.80372,2487.7,2487.2,5.21741]
[1751647044793,0.80374,2487.6,2487.5,0.80373]
[1751647044988,3.2078,2487.8,2487.4,2.00947]
[1751647045193,3.2078,2487.8,2487.7,0.80369]
[1751647045388,4.01146,2487.8,2487.7,0.80369]
[1751647045588,3.2078,2487.8,2487.4,1.4139]
[1751647045791,4.01148,2487.8,2487.7,0.80369]
[1751647045995,3.2078,2487.8,2487.5,0.80375]
[1751647046196,3.2078,2487.8,2487.6,0.80371]
[1751647046402,0.80373,2487.6,2487.5,0.80373]
[1751647046699,3.2078,2487.8,2487.7,0.80369]
[1751647046903,3.2078,2487.8,2487.4,1.4139]
[1751647047195,0.80375,2487.6,2487.5,0.80374]
[1751647047396,3.2078,2487.8,2487.4,1.4139]
[1751647047597,4.01146,2487.8,2487.7,0.80369]
[1751647048295,3.2078,2487.8,2487.7,0.80369]
[1751647048996,1.3488,2488.1,2488.0,0.80359]
[1751647049197,3.2078,2488.2,2488.1,0.80356]
[1751647049604,0.6659,2488.5,2488.4,0.80346]
[1751647049903,3.2078,2488.6,2488.5,0.80343]
[1751647050290,3.2078,2488.6,2488.5,1.11844602]
[1751647050496,0.80335,2488.8,2488.5,15.62023]
[1751647050690,3.8885,2489.0,2488.9,0.8033]
[1751647050901,0.80323,2489.2,2488.8,3.2078]
[1751647051099,44.0078,2489.4,2488.9,1.4042]
[1751647051301,1.1726079,2489.3,2489.2,0.8032]
[1751647051596,1.1726079,2489.3,2489.2,0.80321]
[1751647051798,1.1726079,2489.3,2488.9,1.4042]
[1751647052007,0.6807,2489.5,2489.1,0.80324]
[1751647052008,1.17153157,2489.2,2489.1,0.80324]
[1751647052201,1.17153157,2489.2,2489.1,1.4042]
[1751647052496,0.8033,2488.9,2488.8,12.41031]
[1751647052702,0.80334,2488.8,2488.7,3.2078]
[1751647053396,0.6554,2489.0,2488.9,0.8033]
[1751647053590,0.80323,2489.2,2489.1,0.80321]
[1751647053793,0.80323,2489.2,2489.1,4.01101]
[1751647053794,0.80321,2489.2,2489.1,4.01101]
[1751647053996,0.80321,2489.2,2489.1,3.2078]
[1751647054403,0.80327,2489.1,2489.0,0.80326]
[1751647054604,0.80319,2489.3,2489.2,0.80319]
[1751647054901,0.80322,2489.2,2489.1,0.80322]
[1751647055103,0.80322,2489.2,2489.1,1.3693]
[1751647055399,0.80321,2489.2,2489.1,1.3693]
[1751647055608,0.80324,2489.1,2489.0,3.2078]
[1751647056101,0.80333,2488.8,2488.7,3.2078]
[1751647058603,0.80333,2488.8,2488.7,4.01114]
[1751647058804,0.80332,2488.9,2488.8,0.80332]
[1751647058994,0.80329,2489.0,2488.8,1.96332406]
[1751647059201,0.80326,2489.1,2489.0,0.80326]
[1751647059406,0.80326,2489.1,2489.0,3.73992406]
[1751647061007,0.80326,2489.1,2489.0,0.53212406]
[1751647061397,0.6867,2489.2,2489.0,0.53212406]
[1751647061596,5.92285,2489.7,2489.1,0.53212406]
[1751647061800,0.8032,2489.3,2489.2,0.53212406]
[1751647062106,0.80315,2489.4,2489.3,0.80316]
[1751647062302,0.80313,2489.5,2489.4,0.80314]
[1751647062598,0.80313,2489.5,2489.4,1.93482406]
[1751647062798,0.80313,2489.5,2489.4,2.73796406]
[1751647063003,0.80313,2489.5,2489.4,1.93482406]
[1751647063403,3.4055152,2490.0,2489.4,1.93482406]
[1751647063608,3.4055152,2490.0,2489.5,1.22457513]
[1751647063801,0.80304,2489.7,2489.6,1.93427513]
[1751647064108,0.80304,2489.7,2489.6,0.53157513]
[1751647064406,0.80304,2489.8,2489.7,0.80304]
[1751647064602,0.80304,2489.8,2489.7,0.53157513]
[1751647064805,0.80304,2489.8,2489.7,1.33462513]
[1751647065003,0.80301,2489.9,2489.8,0.80301]
[1751647065307,0.80301,2489.9,2489.8,0.53157513]
[1751647065509,0.80301,2489.9,2489.8,1.33458513]
[1751647065703,0.80301,2489.9,2489.8,0.53157513]
[1751647065903,0.80301,2489.9,2489.8,1.33458513]
[1751647066205,0.80298,2489.9,2489.8,1.33457513]
[1751647066605,0.80298,2489.9,2489.8,0.53157513]
[1751647066807,2.00754,2489.8,2489.2,3.2078]
[1751647067007,3.2078,2489.5,2489.2,0.8032]
[1751647067201,3.2078,2489.5,2489.3,0.80317]
[1751647067202,0.6538,2489.4,2489.3,0.80317]
[1751647067609,1.45694,2489.4,2489.2,0.80318]
[1751647067907,0.6538,2489.4,2489.1,0.80323]
[1751647068105,2.0545,2489.4,2489.1,0.80323]
[1751647068311,0.80324,2489.1,2489.0,0.6782]
[1751647068718,0.80335,2488.8,2488.7,0.80336]
[1751647069013,0.80337,2488.7,2488.6,1.3371]
[1751647069215,0.80337,2488.7,2488.6,2.1405]
[1751647069519,0.80337,2488.7,2488.6,1.3371]
[1751647069810,0.80337,2488.7,2488.3,1.4009]
[1751647069811,0.80346,2488.4,2488.3,1.4009]
[1751647070006,0.80346,2488.4,2488.2,3.2078]
[1751647070206,0.8035,2488.3,2488.2,3.2078]
[1751647070403,3.2078,2488.6,2488.2,3.2078]
[1751647070606,0.8035,2488.3,2488.2,4.01131]
[1751647070808,5.21633,2488.6,2488.0,0.80359]
[1751647071113,0.80351,2488.3,2487.8,3.2078]
[1751647071422,3.2078,2488.6,2488.2,0.80351]
[1751647071621,0.80345,2488.5,2487.9,4.1191]
[1751647071822,0.80348,2488.4,2487.9,2.1101]
[1751647072116,3.2078,2488.6,2487.9,2.1101]
[1751647072117,0.80346,2488.5,2488.4,0.80346]
[1751647072316,3.2078,2488.6,2488.5,0.80343]
[1751647072522,41.60334,2488.8,2488.3,5.21655]
[1751647072721,3.2078,2488.9,2488.8,0.80334]
[1751647073219,3.2078,2489.2,2489.1,0.80324]
[1751647073418,4.01091,2489.5,2489.4,0.80314]
[1751647073618,4.41843636,2489.5,2489.4,0.80314]
[1751647073820,3.2078,2489.5,2489.4,0.80314]
[1751647075621,40.9977152,2490.0,2489.8,0.80301]
[1751647075622,3.2078,2489.9,2489.8,0.80301]
[1751647075817,4.01078,2489.9,2489.8,0.80301]
[1751647076019,3.2078,2489.9,2489.8,0.80301]
[1751647076322,4.01078,2489.9,2489.8,0.80301]
[1751647076525,3.2078,2489.9,2489.8,0.80301]
[1751647076726,1.0006852,2490.0,2489.9,0.80298]
[1751647076928,0.80299,2489.9,2489.8,0.80299]
[1751647077427,1.0006952,2490.0,2489.9,0.80298]
[1751647077723,0.80305,2489.7,2489.6,2.24376]
[1751647077919,0.80304,2489.8,2489.7,0.80304]
[1751647078120,0.1977152,2490.0,2489.4,0.6642]
[1751647078121,0.80306,2489.7,2489.4,0.6642]
[1751647078318,0.1977152,2490.0,2489.6,0.80308]
[1751647078526,0.1977152,2490.0,2489.4,2.0958]
[1751647078527,0.80308,2489.6,2489.5,0.80309]
[1751647078824,3.2078,2489.9,2489.7,0.80303]
[1751647079023,0.80302,2489.8,2489.7,0.80303]
[1751647079219,0.80303,2489.8,2489.7,0.80303]
[1751647079423,0.80302,2489.8,2489.4,4.10364]
[1751647079624,0.80305,2489.7,2489.5,0.80309]
[1751647079825,0.80308,2489.6,2489.5,1.4316]
[1751647080026,3.2078,2489.9,2489.5,1.4316]
[1751647080223,0.803,2489.9,2489.8,0.803]
[1751647080424,0.80302,2489.8,2489.7,0.80303]
[1751647080621,0.80305,2489.7,2489.6,0.80306]
[1751647080927,0.1977152,2490.0,2489.9,0.80298]
[1751647081130,2.19854419,2490.0,2489.9,0.80298]
[1751647081325,2.19854419,2490.0,2489.7,1.3373]
[1751647081326,1.39559419,2490.0,2489.7,1.3373]
[1751647081528,1.39559419,2490.0,2489.4,0.6642]
[1751647081529,0.8031,2489.6,2489.4,0.6642]
[1751647081826,3.4055152,2490.0,2489.0,4.5451]
[1751647081827,3.2078,2489.7,2489.0,4.5451]
[1751647082029,3.2078,2489.7,2489.3,0.80316]
[1751647082220,0.80319,2489.3,2489.0,4.5451]
[1751647082423,2.0077,2489.6,2489.1,0.80321]
[1751647082626,0.8032,2489.3,2489.2,0.80321]
[1751647082819,0.80322,2489.2,2489.1,0.80322]
[1751647083027,0.8032,2489.3,2489.2,0.8032]
[1751647083226,0.7119,2489.5,2489.4,0.80314]
[1751647083431,0.80308,2489.6,2489.2,0.80321]
[1751647083630,3.2078,2489.7,2489.2,0.80321]
[1751647083631,4.01087,2489.7,2489.2,2.13391]
[1751647083832,3.2078,2489.7,2489.6,0.80308]
[1751647084031,4.01085,2489.7,2489.6,0.80308]
[1751647084226,3.2078,2489.7,2489.6,0.80308]
[1751647084426,3.4055152,2490.0,2489.4,2.00786]
[1751647084627,0.80299,2489.9,2489.7,0.80303]
[1751647084832,0.80299,2489.9,2489.5,1.3307]
[1751647084833,0.80299,2489.9,2489.5,2.0034]
[1751647085031,4.2084852,2490.0,2489.5,2.0034]
[1751647085225,3.4055152,2490.0,2489.9,0.80298]
[1751647086027,0.80298,2489.9,2489.8,0.80299]
[1751647086327,0.80299,2489.9,2489.8,0.803]
[1751647086632,0.80299,2489.9,2489.7,1.3307]
[1751647086633,4.2084852,2490.0,2489.9,0.80298]
[1751647086832,0.80301,2489.8,2489.7,2.13374]
[1751647087130,0.803,2489.9,2489.8,0.803]
[1751647087332,4.2084752,2490.0,2489.9,0.80298]
[1751647087523,3.4055152,2490.0,2489.9,0.80298]
[1751647089121,1.0006652,2490.0,2489.7,1.3307]
[1751647089328,0.1977152,2490.0,2489.7,2.00761]
[1751647089626,1.0006752,2490.0,2489.9,0.80298]
[1751647090131,0.1977152,2490.0,2489.9,0.80298]
[1751647093234,3.2078,2490.3,2490.2,0.80288]
[1751647093431,4.01065,2490.3,2490.2,0.80288]
[1751647093634,3.2078,2490.3,2490.2,0.80288]
[1751647097233,8.2078,2490.3,2489.6,2.65878]
[1751647097428,3.2078,2489.9,2489.8,0.80301]
[1751647097636,3.2078,2489.9,2489.7,0.80303]
[1751647097937,3.2078,2489.9,2489.8,0.80301]
[1751647098139,3.8987,2490.2,2490.1,0.80292]
[1751647098327,3.2078,2490.2,2490.1,0.80292]
[1751647099130,3.9162,2490.8,2490.4,0.80282]
[1751647099435,3.2078,2490.8,2490.7,0.80272]
[1751647100438,1.3964,2491.1,2491.0,0.80263]
[1751647100633,2.19899,2491.1,2491.0,0.80263]
[1751647101334,1.3964,2491.1,2491.0,0.80263]
[1751647101839,0.80266,2491.0,2490.9,0.80264]
[1751647102033,1.3964,2491.1,2490.5,13.6719]
[1751647102234,0.80269,2490.9,2490.8,0.80267]
[1751647102436,0.8027,2490.8,2490.7,0.8027]
[1751647102732,2.7,2491.1,2490.5,15.67885]
[1751647102938,0.80267,2491.0,2490.9,0.80264]
[1751647103326,2.19901,2491.1,2491.0,0.80263]
[1751647103528,1.3964,2491.1,2491.0,0.80263]
[1751647103833,3.2078,2491.5,2491.3,0.80251]
[1751647104032,3.2078,2491.5,2491.1,3.2078]
[1751647104033,0.80256,2491.3,2491.1,3.2078]
[1751647104233,3.2078,2491.5,2491.4,0.8025]
[1751647104535,4.01028,2491.5,2491.4,0.8025]
[1751647104740,0.80253,2491.3,2491.2,1.51643]
[1751647105034,0.80256,2491.2,2491.1,3.2078]
[1751647105433,0.6915,2491.3,2490.7,6.16061]
[1751647105734,0.80265,2491.0,2490.9,0.80264]
[1751647105939,0.80269,2490.9,2490.8,0.80268]
[1751647106239,0.80269,2490.9,2490.8,2.23888]
[1751647106538,0.80269,2490.8,2490.7,0.7139]
[1751647106730,0.80269,2490.8,2490.4,3.2078]
[1751647106731,0.80279,2490.5,2490.4,3.2078]
[1751647106937,0.80288,2490.3,2490.1,13.7447]
[1751647107137,0.80288,2490.3,2490.2,2.23907]
[1751647107337,0.80284,2490.4,2490.3,0.80283]
[1751647107741,0.80285,2490.3,2490.2,1.4362]
[1751647108041,0.80285,2490.3,2490.2,2.23908]
[1751647108242,0.80285,2490.3,2490.2,1.4362]
[1751647108435,0.80284,2490.4,2490.3,0.80283]
[1751647108835,0.8028,2490.5,2490.4,0.80279]
[1751647109438,0.8028,2490.5,2490.4,2.14919]
[1751647109640,0.80278,2490.6,2490.5,0.80277]
[1751647109839,3.2078,2490.8,2490.4,1.3464]
[1751647110041,4.01051,2490.8,2490.7,0.80272]
[1751647110944,3.2078,2491.2,2490.8,2.00673]
[1751647111150,0.80262,2491.1,2491.0,0.80259]
[1751647111447,0.80262,2491.1,2491.0,2.15469]
[1751647111856,0.80263,2491.0,2490.9,0.656]
[1751647112050,0.696,2491.4,2490.8,0.7036]
[1751647112353,0.80259,2491.2,2491.1,0.80257]
[1751647112542,0.80255,2491.3,2491.2,0.80255]
[1751647112851,0.80263,2491.0,2490.9,4.01044]
[1751647113054,0.80263,2491.0,2490.9,3.2078]
[1751647113242,0.80263,2491.0,2490.9,4.01046]
[1751647113446,0.80262,2491.1,2491.0,0.80261]
[1751647113854,0.80263,2491.0,2490.9,4.01043]
[1751647114048,0.80263,2491.0,2490.9,3.2078]
[1751647114251,0.80272,2490.8,2490.7,0.80271]
[1751647114444,0.80275,2490.7,2490.6,0.80274]
[1751647114855,0.7161,2490.9,2490.5,4.01056]
[1751647114856,0.80275,2490.6,2490.5,4.01056]
[1751647115152,0.80275,2490.7,2490.6,0.80274]
[1751647115752,1.3917,2490.9,2490.5,3.2078]
[1751647115949,1.3917,2490.9,2490.5,4.5314]
[1751647116154,0.80275,2490.6,2490.5,5.33416]
[1751647116354,0.80274,2490.7,2490.6,0.80274]
[1751647116750,0.80275,2490.6,2490.5,5.33417]
[1751647116953,0.80275,2490.7,2490.6,0.80275]
[1751647118259,0.80275,2490.6,2490.5,4.01057]
[1751647118558,0.80275,2490.7,2490.6,0.80274]
[1751647119257,1.3917,2490.9,2490.5,3.2078]
[1751647119258,0.80275,2490.6,2490.5,3.2078]
[1751647119959,0.80275,2490.6,2490.5,4.01059]
[1751647120562,0.80275,2490.6,2490.5,3.2078]
[1751647120862,2.00675,2490.8,2490.2,16.27326]
[1751647121055,0.80285,2490.3,2490.2,4.67826]
[1751647121354,0.80284,2490.4,2490.3,0.80282]
[1751647122862,0.80285,2490.3,2490.2,4.01067]
[1751647123963,0.80292,2490.2,2490.1,0.80289]
[1751647124360,0.80288,2490.3,2490.2,0.80286]
[1751647125364,0.80292,2490.2,2490.1,0.80289]
[1751647125663,0.80291,2490.2,2490.1,0.80288]
[1751647126463,0.80288,2490.3,2490.2,0.80285]
[1751647127659,0.80292,2490.2,2490.1,0.80289]
[1751647127964,0.80283,2490.4,2490.3,0.80285]
[1751647129469,0.80287,2490.3,2490.2,0.80286]
[1751647129670,0.80288,2490.2,2490.1,0.80288]
[1751647129871,0.80288,2490.2,2490.0,2.0867]
[1751647129872,0.80287,2490.3,2490.2,0.80284]
[1751647130874,2.00698,2490.5,2490.0,4.09405]
[1751647130875,0.80292,2490.2,2490.1,0.80289]
[1751647131173,0.80288,2490.3,2490.2,0.80284]
[1751647131567,0.80292,2490.2,2490.1,0.80289]
[1751647133577,0.80292,2490.1,2490.0,1.45544]
[1751647134477,0.80295,2490.0,2489.9,0.80296]
[1751647134675,0.80298,2489.9,2489.8,4.0108]
[1751647134978,0.80298,2489.9,2489.8,3.2078]
[1751647135874,0.80308,2489.6,2489.5,5.1734]
[1751647136078,0.80308,2489.6,2489.5,6.67249]
[1751647136376,0.80308,2489.6,2489.5,5.8694]
[1751647136683,0.80308,2489.6,2489.5,6.67251]
[1751647137075,0.80308,2489.6,2489.5,5.8694]
[1751647137276,0.80308,2489.6,2489.5,6.67251]
[1751647137777,0.80307,2489.7,2489.6,0.80303]
[1751647137977,0.80303,2489.8,2489.7,0.80301]
[1751647138878,0.80303,2489.8,2489.5,5.8694]
[1751647138879,0.80308,2489.6,2489.5,6.67249]
[1751647139273,0.80307,2489.7,2489.6,0.80305]
[1751647140074,0.80308,2489.6,2489.5,6.67249]
[1751647140478,0.80307,2489.7,2489.6,0.80305]
[1751647140780,0.80308,2489.6,2489.5,6.67249]
[1751647141383,0.80307,2489.7,2489.6,0.80305]
[1751647141677,0.80308,2489.6,2489.5,6.67248]
[1751647141881,0.80308,2489.6,2489.5,0.696]
[1751647142382,0.80308,2489.6,2489.5,1.49911]
[1751647142582,0.80308,2489.6,2489.5,0.696]